Cogmind - Beta 15 @@@ ROGUE MODE // 2025.10.19 @ 05:35:57 Player: Grey Result: Destroyed by G-67 Veteran with Plasma Rifle Performance ------------- Evolutions (6) 3000 Regions Visited (13) 2600 Robots Destroyed (126) 630 Value Destroyed (4486) 4486 Prototype IDs (43) 860 Alien Tech Used (2) 400 Bonus (857) 857 TOTAL SCORE: 12833 Bonus ------- High Alert Combat Kills 257 Aligned with FarCom 300 Met Zhirov 300 Cogmind --------- Core Integrity 0/1150 Matter 290/300 Energy 90/100 System Corruption 9% Temperature Cool (12) Movement Walking (120) Location -4/Factory Parts ------- > --- POWER (2) -------- (None) > --- PROPULSION (3) --- Flexi-carbon Leg > --- UTILITY (10) ----- (None) > --- WEAPON (4) ------- (None) > --- INVENTORY (5) ---- Improved Point Defense System Plasma Rifle Peak State ------------ > --- POWER ------------ Fission Core Cold Fusion Reactor > --- PROPULSION ------- Armored Wheel Armored Huge Wheel > --- UTILITY ---------- Advanced Heat Sink Humpback Improved Matter Compressor Improved Terrain Scanner Improved Heavy Armor Plating Heavy Insulated Plating Shield Generator > --- WEAPON ----------- Phase Gun Railgun Railgun Railgun > --- INVENTORY -------- Micro Fission Core Light Antimatter Reactor Heavy Antimatter Reactor Compact Wheel Compact Wheel Armored Wheel Advanced Power Amplifier Stasis Canceller Improved Core Shielding Improved Power Shielding Improved Propulsion Shielding Experimental Weapon Shielding Improved Light Armor Plating Improved Light Armor Plating Improved Light Armor Plating Makeshift Light Armor Plating Advanced Focal Shield Shock Absorption System EM Shield Point Defense System Improved Dynamic Insulation System Improved Recalibrator Railgun Railgun Advanced Assault Cannon Hardcell Cannon Heavy Rocket Launcher Heavy Missile Launcher [Rating: 101] Favorites ----------- Power Fission Core Engine Improved Ion Engine Power Core Fission Core Reactor Cold Fusion Reactor Propulsion Compact Wheel Treads Light Treads Leg Flexi-carbon Leg Wheel Compact Wheel Utility Improved Light Armor Plating Device Advanced Heat Sink Storage Humpback Processor Improved Targeting Computer Protection Improved Light Armor Plating Weapon Minigun Energy Gun Heavy Laser Ballistic Gun Minigun Ballistic Cannon Advanced Assault Cannon Launcher Scatter Rocket Array Build | -11 -10 -10 -10 -9 -8 -7 -6 -5 -5 -5 -5 -4 -4 ------- Run | Yrd Mat Min Exi Min Mat Fac Fac Fac Upp Upp Zhi Pro Fac Slots Evolved 12 | . . . . . 4 2 2 2 . . . . 2 Power 1 | . . . . . . 1 . . . . . . . Propulsion 1 | . . . . . . . 1 . . . . . . Utility 8 | . . . . . 4 . 1 1 . . . . 2 Weapon 2 | . . . . . . 1 . 1 . . . . . Parts Attached 90 | 6 2 1 1 3 12 7 10 . . 2 6 3 37 Power 13 | 1 . . . . 2 1 1 . . 2 1 1 4 Engine 6 | 1 . . . . 2 1 1 . . 1 . . . Core 2 | . . . . . . . . . . 1 . . 1 Reactor 5 | . . . . . . . . . . . 1 1 3 Propulsion 16 | 2 . 1 . 2 1 1 2 . . . . 1 6 Treads 2 | . . . . . 1 1 . . . . . . . Leg 1 | . . . . . . . . . . . . . 1 Wheel 13 | 2 . 1 . 2 . . 2 . . . . 1 5 Hover . | . . . . . . . . . . . . . . Flight . | . . . . . . . . . . . . . . Utility 37 | 1 1 . 1 . 6 . 6 . . . 4 . 18 Device 11 | . . . . . 1 . 3 . . . 1 . 6 Storage 7 | 1 1 . 1 . 2 . . . . . 1 . 1 Processor 1 | . . . . . . . . . . . . . 1 Hackware . | . . . . . . . . . . . . . . Protection 18 | . . . . . 3 . 3 . . . 2 . 10 Artifact . | . . . . . . . . . . . . . . Weapon 24 | 2 1 . . 1 3 5 1 . . . 1 1 9 Energy Gun 6 | . . . . . . 1 . . . . . 1 4 Energy Cannon . | . . . . . . . . . . . . . . Ballistic Gun 11 | 2 . . . 1 3 1 . . . . . . 4 Ballistic Cannon 1 | . . . . . . . 1 . . . . . . Launcher 6 | . 1 . . . . 3 . . . . 1 . 1 Special Weapon . | . . . . . . . . . . . . . . Impact Weapon . | . . . . . . . . . . . . . . Slashing Weapon . | . . . . . . . . . . . . . . Piercing Weapon . | . . . . . . . . . . . . . . Special Melee Weapon . | . . . . . . . . . . . . . . Unidentified Prototypes 6 | . . . . . . . . . . . 6 . . Parts Lost 60 | . . . . 2 8 . 2 . . . . 5 43 Power 7 | . . . . . 1 . . . . . . . 6 Propulsion 10 | . . . . 2 2 . . . . . . 1 5 Utility 27 | . . . . . 2 . 1 . . . . 3 21 Weapon 16 | . . . . . 3 . 1 . . . . 1 11 Highest Loss Streak 26 | . . . . 2 5 . 1 . . . . 3 26 To Critical Strikes . | . . . . . . . . . . . . . . Average Backups 19 | 1 6 9 9 8 10 9 19 26 28 31 31 29 20 Power 1 | . 1 1 . 1 2 1 2 3 3 3 1 1 1 Propulsion 1 | . . . . . . 1 1 2 2 2 2 1 1 Utility 11 | . 1 2 2 2 1 1 9 15 18 20 21 19 13 Weapon 5 | . 4 6 5 5 6 6 6 6 5 5 6 5 4 Tool/Special . | . . . . . . . . . . . . . . Unused Backups 28 | . 1 1 3 . 2 . 4 . . 1 3 . 13 Power 1 | . 1 . . . . . . . . . . . . Propulsion 3 | . . . . . . . 2 . . . . . 1 Utility 15 | . . . 2 . . . 1 . . 1 3 . 8 Weapon 8 | . . 1 . . 2 . 1 . . . . . 4 Tool/Special 1 | . . . 1 . . . . . . . . . . Average Slot Usage (%) 80 | . 85 85 85 71 63 82 80 76 87 88 87 87 78 Engine 8 | . 14 14 14 14 9 14 13 11 11 9 5 4 . Core 1 | . . . . . . . . . . 1 5 5 4 Wheel 13 | . 28 28 28 14 14 . 12 11 11 11 11 10 11 Device 10 | . . . . . 1 7 12 11 16 17 17 16 13 Storage 9 | . 14 14 14 14 10 15 11 5 5 5 5 7 9 Protection 10 | . . . . . 9 7 8 17 17 17 16 14 13 Energy Gun 3 | . . . . . . 6 3 . 5 5 5 5 6 Ballistic Gun 12 | . 27 14 14 24 17 14 13 11 11 11 7 4 7 Ballistic Cannon 2 | . . . . . . . 1 5 5 5 5 5 1 Launcher 3 | . . 14 14 3 . . 1 . . . 2 5 2 Peak Build Rating 101 | 6 7 7 10 10 49 63 79 57 65 69 80 81 101 Average Rating 56 | 4 6 6 8 9 40 58 70 55 64 66 71 75 85 On Entrance 38 | . 6 7 6 10 10 48 61 55 57 65 69 73 74 Naked Turns . | . . . . . . . . . . . . . . Heaviest Build 284 | 14 30 30 210 210 26 46 256 256 264 264 273 276 284 Greatest Support 48 | 20 20 26 26 26 20 48 44 44 44 44 44 44 40 Greatest Overweight (x) 69 | . 1 1 8 69 8 1 5 5 5 5 6 6 27 Average Overweight (x) 3 | . . 1 1 12 . . . 5 5 5 5 6 4 Largest Inventory Capacity 40 | 8 15 15 35 35 40 40 40 35 35 35 35 35 35 Average Capacity 32 | 6 12 15 15 35 40 40 39 35 35 35 35 35 29 Most Carried 35 | 3 10 11 13 12 15 15 30 31 32 35 35 32 30 Average Carried 21 | 1 6 9 10 10 11 11 20 28 30 33 33 31 20 Final Capacity 40 | 8 15 15 35 35 40 40 35 35 35 35 35 35 5 Final Carried 35 | 2 10 9 11 10 11 15 28 31 32 35 32 28 2 Class Distribution -------------------- 47% | Hauler-Tank 19% | Hauler-Mutant 15% | Hauler-Skirmisher 12% | Mutant 4% | Scavenger-Tank Dominant Class ---------------- Mutant | -10/Materials Mutant | -10/Mines Mutant | -10/Exiles Hauler-Mutant | -9/Mines Hauler-Mutant | -8/Materials Hauler-Skirmisher | -7/Factory Hauler-Tank | -6/Factory Hauler-Tank | -5/Factory Hauler-Tank | -5/Upper Caves Hauler-Tank | -5/Upper Caves Hauler-Tank | -5/Zhirov Hauler-Tank | -4/Proximity Caves Hauler-Skirmisher | -4/Factory Resources | -11 -10 -10 -10 -9 -8 -7 -6 -5 -5 -5 -5 -4 -4 ----------- Run | Yrd Mat Min Exi Min Mat Fac Fac Fac Upp Upp Zhi Pro Fac Matter Collected 4020 | 213 169 111 152 60 298 62 66 160 458 53 200 468 1550 Remotely 285 | . . . . . . . . . . . . . 285 Salvage Created 4366 | . 191 62 . 145 381 172 439 . 111 . . 295 2570 Parts 260 | . 23 6 . 9 24 8 35 . 9 . . 18 128 Haulers Intercepted 2 | . . . . . . 1 . . . . . . 1 Recyclers Shooed 6 | . . . . . . . . . . . . . 6 Parts Field Recycled . | . . . . . . . . . . . . . . Retrieved Matter . | . . . . . . . . . . . . . . Parts Self-Destructed 21 | . . . . . . . . . 9 . . 12 . Prevented 1 | . . . . . . . . . . 1 . . . Kills | -11 -10 -10 -10 -9 -8 -7 -6 -5 -5 -5 -5 -4 -4 ------- Run | Yrd Mat Min Exi Min Mat Fac Fac Fac Upp Upp Zhi Pro Fac Combat Hostiles Destroyed 81 | . 8 2 . 2 7 4 9 . 5 . . 10 34 Guns 54 | . 8 . . 2 7 1 2 . 4 . . 3 27 Cannons 1 | . . . . . . . . . 1 . . . . AOE 25 | . . 2 . . . 3 7 . . . . 6 7 Classes Destroyed 14 | . 3 . . 1 1 4 3 . . . . 1 1 Worker 21 | . . . . 3 . . 7 . . . . . 11 Builder 10 | . . . . . . . 4 . . . . 1 5 Tunneler 1 | . . . . . . . 1 . . . . . . Hauler 2 | . . . . . . 1 . . . . . . 1 Recycler 4 | . . . . . . . . . . . . . 4 Mechanic 1 | . . . . . . 1 . . . . . . . Operator 1 | . . . . . . 1 . . . . . . . Watcher 5 | . 1 . . . . . . . . . . 2 2 Swarmer 26 | . 6 . . . . . . . 5 . . 4 11 Grunt 36 | . 2 2 . 2 4 3 8 . . . . . 15 Brawler 2 | . . . . . . 1 . . . . . . 1 Sentry 6 | . . . . . 3 . . . . . . 3 . Hunter 2 | . . . . . . . . . . . . 2 . Programmer 9 | . . . . . . . 1 . . . . 1 7 Best Kill Streak 20 | . 6 2 . 2 2 6 20 . 5 . . 5 13 Combat Bots Only 8 | . 5 2 . 2 2 4 5 . 5 . . 4 8 Max Kills in Single Turn 9 | . 1 2 . 1 1 5 9 . 2 . . 4 6 Gunslinging 1 | . . . . . . . . . . . . . 1 Exploded 4 | . . 2 . . . 3 3 . . . . 4 4 Melee . | . . . . . . . . . . . . . . Uniques/NPCs Destroyed . | . . . . . . . . . . . . . . Combat | -11 -10 -10 -10 -9 -8 -7 -6 -5 -5 -5 -5 -4 -4 -------- Run | Yrd Mat Min Exi Min Mat Fac Fac Fac Upp Upp Zhi Pro Fac Hostile Shots Fired 754 | . 32 4 . 10 77 6 24 . 27 . . 146 428 Missed 174 | . 7 2 . 1 12 3 10 . 5 . . 51 83 Hits 580 | . 25 2 . 9 65 3 14 . 22 . . 95 345 Melee 2 | . . . . . . . . . . . . . 2 Projectile 578 | . 25 2 . 9 65 3 14 . 22 . . 95 343 AOE 1 | . . . . . . . . . . . . 1 . Critical Strikes 33 | . 1 . . 1 4 . 1 . 1 . . 3 22 Actively Blocked 2 | . . . . . . . . . . . . . 2 Part Disruptions 2 | . . . . . . . . . . . . . 2 Actively Blocked 2 | . . . . . . . . . . . . . 2 Damage Taken 9376 | . 222 59 . 121 1016 95 330 . 177 . . 1367 5989 Core 1587 | . 56 . . . 261 . 29 . 8 . . 66 1167 Absorbed by Shields 822 | . . . . . . . 115 . 54 . . 481 172 Redirected to Shielding 616 | . . . . . . . . . . . . . 616 Ignored by Resistances 708 | . . . . . . . . . 118 . . 257 333 Core Remaining (%) 85 | 100 . . . 77 52 100 96 . . . . 85 . Volleys Fired 291 | . 24 2 . 10 46 5 14 . 15 . . 41 134 Largest 4 | . 2 2 . 2 2 3 3 . 4 . . 4 4 Hottest 227 | . 40 50 . 40 43 117 117 . 157 . . 203 227 Shots Fired 672 | . 47 4 . 20 87 13 41 . 39 . . 103 318 Gun 584 | . 46 2 . 20 82 6 30 . 24 . . 64 310 Cannon 44 | . . . . . . . . . 15 . . 29 . Launcher 44 | . 1 2 . . 5 7 11 . . . . 10 8 Special . | . . . . . . . . . . . . . . Kinetic 412 | . 46 2 . 20 82 4 28 . 31 . . 58 141 Thermal 210 | . . . . . . 2 2 . 8 . . 35 163 Explosive 44 | . 1 2 . . 5 7 11 . . . . 10 8 Electromagnetic 6 | . . . . . . . . . . . . . 6 Robot Hit Streak 17 | . 5 2 . 7 17 6 10 . 3 . . 6 11 Robot Miss Streak 9 | . 2 1 . 1 2 3 6 . 2 . . 9 5 Penetration Max 2 | . . . . . . . . . . . . . 2 Secondary Targets 15 | . 3 . . . 1 . . . . . . . 11 Max Gunslinging Chain 2 | . 1 . . . 1 . . . . . . . 2 Shots Hit Robots 380 | . 27 3 . 13 68 5 18 . 11 . . 54 181 Core Hits 262 | . 10 3 . 8 23 15 35 . 7 . . 51 110 Critical Kills . | . . . . . . . . . . . . . . Critical Parts Destroyed 4 | . . . . . . . . . . . . . 4 Critical Strikes 11 | . . . . . . . . . 1 . . 1 9 Burn 7 | . . . . . . . . . 1 . . 1 5 Destroy 4 | . . . . . . . . . . . . . 4 Melee Attacks . | . . . . . . . . . . . . . . Impact . | . . . . . . . . . . . . . . Slashing . | . . . . . . . . . . . . . . Piercing . | . . . . . . . . . . . . . . Sneak Attacks . | . . . . . . . . . . . . . . Combat Hostiles . | . . . . . . . . . . . . . . Follow-up Attacks . | . . . . . . . . . . . . . . Damage Inflicted 13544 | . 345 131 . 150 710 692 1924 . 243 . . 1970 7379 Guns 7977 | . 345 22 . 150 710 71 234 . 164 . . 728 5553 Cannons 535 | . . . . . . . . . 79 . . 456 . Explosions 5031 | . . 109 . . . 621 1690 . . . . 785 1826 Melee . | . . . . . . . . . . . . . . Ramming 1 | . . . . . . . . . . . . 1 . Kinetic 5249 | . 345 22 . 150 710 51 211 . 187 . . 774 2799 Thermal 3674 | . . . . . . 20 531 . 56 . . 410 2657 Explosive 4523 | . . 109 . . . 621 1182 . . . . 785 1826 Electromagnetic 97 | . . . . . . . . . . . . . 97 Impact . | . . . . . . . . . . . . . . Slashing . | . . . . . . . . . . . . . . Piercing . | . . . . . . . . . . . . . . Highest Corruption 9 | . . . . . . . 1 . . . . 3 9 Average Corruption 3 | . . . . . . . 1 . . . . 2 4 Corruption Purged . | . . . . . . . . . . . . . . Corruption Blocked . | . . . . . . . . . . . . . . Effects 54 | . . . . . . . 3 . . . . 22 29 Message Errors 9 | . . . . . . . . . . . . 1 8 Matter Fused 10 | . . . . . . . 2 . . . . 3 5 Heat Flow Errors 5 | . . . . . . . . . . . . 2 3 Energy Discharges 9 | . . . . . . . 1 . . . . 3 5 Parts Rejected 2 | . . . . . . . . . . . . 2 . Data Loss (minor) 4 | . . . . . . . . . . . . 3 1 Data Loss (major) 6 | . . . . . . . . . . . . 4 2 Misfires 2 | . . . . . . . . . . . . 1 1 Weapon Failures 7 | . . . . . . . . . . . . 3 4 Overload Shots . | . . . . . . . . . . . . . . Overflow Damage 182 | . . . . . . . 129 . . . . 6 47 Projectiles . | . . . . . . . . . . . . . . Explosions 182 | . . . . . . . 129 . . . . 6 47 Melee . | . . . . . . . . . . . . . . Knockbacks 4 | . . . . . . . . . . . . 4 . Impact . | . . . . . . . . . . . . . . Kinetic 4 | . . . . . . . . . . . . 4 . Secondary . | . . . . . . . . . . . . . . Self-Inflicted Damage 463 | . . 30 . . . 51 187 . . . . 195 . Shots 15 | . . 1 . . . 1 3 . . . . 10 . Rammed 2 | . . . . . . . . . . . . 2 . Targets Rammed 2 | . . . . . . . . . . . . 2 . Kicked . | . . . . . . . . . . . . . . Crushed . | . . . . . . . . . . . . . . Highest Temperature 460 | . . 11 . 25 50 8 11 . 151 . . 376 460 Average Temperature 121 | . . 7 . 10 17 7 6 . 67 . . 121 141 Received Heat Transfer 2263 | . 54 15 . 87 486 27 86 . . . . 174 1334 Effects 11 | . . . . . . . . . . . . 3 8 Shutdowns 3 | . . . . . . . . . . . . 1 2 Energy Bleed 2 | . . . . . . . . . . . . 1 1 Interference 4 | . . . . . . . . . . . . 1 3 Short Circuit 1 | . . . . . . . . . . . . . 1 Damage (minor) 1 | . . . . . . . . . . . . . 1 Siege Activations . | . . . . . . . . . . . . . . Martial Activations . | . . . . . . . . . . . . . . Shielding Activations . | . . . . . . . . . . . . . . Robots Disrupted . | . . . . . . . . . . . . . . Combat Hostiles . | . . . . . . . . . . . . . . Robots Corrupted . | . . . . . . . . . . . . . . Combat Hostiles . | . . . . . . . . . . . . . . Parts Fried 1 | . . . . . . . . . . . . . 1 Impact Corruptions . | . . . . . . . . . . . . . . Robots Melted 1 | . . . . . . . . . . . . 1 . Combat Hostiles 1 | . . . . . . . . . . . . 1 . Parts Melted 5 | . . . . . . . . . . . . . 5 Heat Transferred 5445 | . . . . . . 37 487 . 185 . . 629 4107 Parts Sabotaged 2 | . . . . . . . . . . . . . 2 Parts Stolen . | . . . . . . . . . . . . . . Parts Stripped . | . . . . . . . . . . . . . . Power Chain Reactions 1 | . . . . . . . . . . . . . 1 Alert | -11 -10 -10 -10 -9 -8 -7 -6 -5 -5 -5 -5 -4 -4 ------- Run | Yrd Mat Min Exi Min Mat Fac Fac Fac Upp Upp Zhi Pro Fac Maximum Alert Level 2 | . . . . . . . 2 1 . . . . 2 Low Security (%) 83 | 100 100 100 . 100 100 100 60 76 . . . . 70 Level 1 1 | . . . . . . . 1 23 . . . . . Level 2 14 | . . . . . . . 37 . . . . . 29 Level 3 . | . . . . . . . . . . . . . . Level 4 . | . . . . . . . . . . . . . . Level 5 . | . . . . . . . . . . . . . . High Security . | . . . . . . . . . . . . . . Max Security . | . . . . . . . . . . . . . . Peak Influence 599 | . 156 107 . 55 46 153 577 237 . . . . 599 Initial 237 | . . 46 . . . 18 70 237 . . . . 54 Average 105 | . 79 58 . 4 9 15 212 161 . . . . 173 Influence Increases 3084 | . 221 61 . 80 253 180 653 12 110 . . 280 1234 Destroy 0b10 Robot/C 1620 | . 160 40 . 40 140 80 180 . 100 . . 200 680 Destroy 0b10 Robot/NC 225 | . 5 . . 15 . 15 60 . . . . 15 115 Destroy Leader 310 | . 32 10 . 10 50 12 40 . 10 . . 20 126 Successful Hack 58 | . 2 . . . 16 12 16 12 . . . . . Disable Machine 465 | . . . . . 15 15 315 . . . . . 120 Destroy Structure 271 | . 7 11 . . 17 46 42 . . . . . 148 Lose Combat Pursuer 135 | . 15 . . 15 15 . . . . . . 45 45 Influence Decreases 2595 | . 102 173 7 80 213 77 311 418 189 . . 193 832 Entered New Map 486 | . . 73 7 . . 22 73 248 30 . . . 33 Time Decay 1570 | . 102 100 . 80 164 55 218 170 159 . . 153 369 Lost Part 539 | . . . . . 49 . 20 . . . . 40 430 Squads Dispatched 17 | . 1 . . . 1 . 4 1 . . . 2 8 Investigation 1 | . . . . . . . . . . . . 1 . Extermination 6 | . . . . . . . 2 1 . . . . 3 Reinforcement 8 | . 1 . . . 1 . 1 . . . . 1 4 Assault 1 | . . . . . . . . . . . . . 1 Garrison 1 | . . . . . . . 1 . . . . . . Intercept . | . . . . . . . . . . . . . . Searches Triggered . | . . . . . . . . . . . . . . Construction Impeded 6 | . . . . . . . 1 . . . . 1 4 Haulers Reinforced . | . . . . . . . . . . . . . . Active Scanning Responses . | . . . . . . . . . . . . . . Cargo Convoy Interrupts . | . . . . . . . . . . . . . . Stealth | -11 -10 -10 -10 -9 -8 -7 -6 -5 -5 -5 -5 -4 -4 --------- Run | Yrd Mat Min Exi Min Mat Fac Fac Fac Upp Upp Zhi Pro Fac Distress Signals 8 | . 1 . . . . . . . . . . 1 6 Communications Jammed . | . . . . . . . . . . . . . . Distress Signals . | . . . . . . . . . . . . . . Times Spotted 121 | . 10 2 . 3 11 5 9 . 5 . . 20 56 Peak Tracking Total 10 | . 7 2 . 3 3 4 3 . 5 . . 7 10 Tactical Retreats 8 | . 1 . . 1 1 . . . . . . 3 2 Traps | -11 -10 -10 -10 -9 -8 -7 -6 -5 -5 -5 -5 -4 -4 ------- Run | Yrd Mat Min Exi Min Mat Fac Fac Fac Upp Upp Zhi Pro Fac Traps Triggered . | . . . . . . . . . . . . . . Indirectly . | . . . . . . . . . . . . . . Trap Hack Attempts . | . . . . . . . . . . . . . . Triggered . | . . . . . . . . . . . . . . Disarmed 6 | . . . . . 6 . . . . . . . . Reprogrammed . | . . . . . . . . . . . . . . Reused . | . . . . . . . . . . . . . . Traps Extracted . | . . . . . . . . . . . . . . Installed . | . . . . . . . . . . . . . . Triggered . | . . . . . . . . . . . . . . Machines | -11 -10 -10 -10 -9 -8 -7 -6 -5 -5 -5 -5 -4 -4 ---------- Run | Yrd Mat Min Exi Min Mat Fac Fac Fac Upp Upp Zhi Pro Fac Machines Disabled 31 | . . . . . 1 1 21 . . . . . 8 Max in Single Turn 17 | . . . . . 1 1 17 . . . . . 1 Garrison Access 1 | . . . . . . . 1 . . . . . . Machines Repaired . | . . . . . . . . . . . . . . Machines Dismantled . | . . . . . . . . . . . . . . Machines Sabotaged . | . . . . . . . . . . . . . . Overloaded Fab Kills . | . . . . . . . . . . . . . . Hacking | -11 -10 -10 -10 -9 -8 -7 -6 -5 -5 -5 -5 -4 -4 --------- Run | Yrd Mat Min Exi Min Mat Fac Fac Fac Upp Upp Zhi Pro Fac Machines Accessed 30 | . 4 . 2 . 4 3 5 1 . 1 9 1 . Terminals 11 | . 3 . . . 3 1 3 . . . . 1 . Fabricators . | . . . . . . . . . . . . . . Repair Stations . | . . . . . . . . . . . . . . Recycling Units 6 | . 1 . . . 1 2 1 1 . . . . . Scanalyzers . | . . . . . . . . . . . . . . Garrison Access 1 | . . . . . . . 1 . . . . . . Total Hacks 88 | . 8 . 2 . 10 8 6 2 . 1 48 3 . Successful 74 | . 4 . 2 . 7 6 4 1 . 1 48 1 . Failed 14 | . 4 . . . 3 2 2 1 . . . 2 . Catastrophic 1 | . . . . . . . . 1 . . . . . Database Lockouts . | . . . . . . . . . . . . . . Manual 10 | . 1 . 1 . 2 3 1 2 . . . . . Terminals 27 | . 7 . . . 8 5 4 . . . . 3 . Fabricators . | . . . . . . . . . . . . . . Repair Stations . | . . . . . . . . . . . . . . Recycling Units 9 | . 1 . . . 2 3 1 2 . . . . . Scanalyzers . | . . . . . . . . . . . . . . Garrison Access 1 | . . . . . . . 1 . . . . . . Terminal Hacks 68 | . 3 . 2 . 7 4 2 . . 1 48 1 . Record 41 | . 1 . 1 . . 3 . . . . 36 . . Part Schematic 4 | . . . . . . . . . . . 4 . . Robot Analysis 4 | . . . . . . . . . . . 4 . . Prototype ID Bank 6 | . 1 . . . 1 . . . . . 4 . . Open Door 2 | . . . . . . . . . . 1 . 1 . Branch Access Points 1 | . . . . . 1 . . . . . . . . Emergency Access Points 1 | . . . . . 1 . . . . . . . . Alert Level 1 | . . . . . 1 . . . . . . . . Locate Traps 2 | . 1 . . . 1 . . . . . . . . Disarm Traps 1 | . . . . . 1 . . . . . . . . Zone Layout 4 | . . . . . 1 1 2 . . . . . . Proto ID Catalog 1 | . . . 1 . . . . . . . . . . Fabricator Hacks . | . . . . . . . . . . . . . . Repair Station Hacks . | . . . . . . . . . . . . . . Recycling Unit Hacks . | . . . . . . . . . . . . . . Scanalyzer . | . . . . . . . . . . . . . . Garrison Access Hacks 1 | . . . . . . . 1 . . . . . . Seal Access 1 | . . . . . . . 1 . . . . . . Unauthorized Hacks . | . . . . . . . . . . . . . . Terminals . | . . . . . . . . . . . . . . Fabricators . | . . . . . . . . . . . . . . Repair Stations . | . . . . . . . . . . . . . . Recycling Units . | . . . . . . . . . . . . . . Scanalyzers . | . . . . . . . . . . . . . . Garrison Access . | . . . . . . . . . . . . . . Data Cores Recovered 1 | . . . . . . 1 . . . . . . . Used . | . . . . . . . . . . . . . . Hacking Detections 10 | . 3 . . . 2 1 2 1 . . . 1 . Full Trace Events 1 | . . . . . . . . . . . . 1 . Feedback Events . | . . . . . . . . . . . . . . Feedback Blocked . | . . . . . . . . . . . . . . Robot Schematics Acquired . | . . . . . . . . . . . . . . Robots Built . | . . . . . . . . . . . . . . Authchips . | . . . . . . . . . . . . . . Time . | . . . . . . . . . . . . . . Total Robot Build Rating . | . . . . . . . . . . . . . . Part Schematics Acquired 4 | . . . . . . . . . . . 4 . . Parts Built . | . . . . . . . . . . . . . . Authchips . | . . . . . . . . . . . . . . Time . | . . . . . . . . . . . . . . Total Part Build Rating . | . . . . . . . . . . . . . . Parts Repaired . | . . . . . . . . . . . . . . Time . | . . . . . . . . . . . . . . Parts Recycled . | . . . . . . . . . . . . . . Recycled Matter . | . . . . . . . . . . . . . . Retrieved Matter . | . . . . . . . . . . . . . . Retrieved Components . | . . . . . . . . . . . . . . Parts Scanalyzed . | . . . . . . . . . . . . . . Part Schematics Acquired . | . . . . . . . . . . . . . . Parts Damaged . | . . . . . . . . . . . . . . Bothacking | -11 -10 -10 -10 -9 -8 -7 -6 -5 -5 -5 -5 -4 -4 ------------ Run | Yrd Mat Min Exi Min Mat Fac Fac Fac Upp Upp Zhi Pro Fac Used RIF Installer . | . . . . . . . . . . . . . . Robots Hacked . | . . . . . . . . . . . . . . Non-combat . | . . . . . . . . . . . . . . Combat . | . . . . . . . . . . . . . . Robot Hacks Applied . | . . . . . . . . . . . . . . Relay Couplers Released . | . . . . . . . . . . . . . . Fabnet Peak Effective % . | . . . . . . . . . . . . . . Robots Rewired . | . . . . . . . . . . . . . . Allies Hacked . | . . . . . . . . . . . . . . Hacks Repelled . | . . . . . . . . . . . . . . Allies | -11 -10 -10 -10 -9 -8 -7 -6 -5 -5 -5 -5 -4 -4 -------- Run | Yrd Mat Min Exi Min Mat Fac Fac Fac Upp Upp Zhi Pro Fac Total Allies . | . . . . . . . . . . . . . . Largest Group . | . . . . . . . . . . . . . . Highest-Rated Group . | . . . . . . . . . . . . . . Highest-Rated Ally . | . . . . . . . . . . . . . . Total Orders . | . . . . . . . . . . . . . . Ally Attacks . | . . . . . . . . . . . . . . Total Damage . | . . . . . . . . . . . . . . Kills . | . . . . . . . . . . . . . . Allies Corrupted . | . . . . . . . . . . . . . . Allies Melted . | . . . . . . . . . . . . . . Intel | -11 -10 -10 -10 -9 -8 -7 -6 -5 -5 -5 -5 -4 -4 ------- Run | Yrd Mat Min Exi Min Mat Fac Fac Fac Upp Upp Zhi Pro Fac Active Infowar (turns) 4433 | . . . . . . . 169 345 520 710 461 1061 1167 Terrain 4433 | . . . . . . . 169 345 520 710 461 1061 1167 Robot Analysis Total 4 | . . . . . . . . . . . 4 . . Derelict Logs Recovered 5 | . . . . 1 . . . . 1 1 . 2 . Drone Launches . | . . . . . . . . . . . . . . Drone Recoveries . | . . . . . . . . . . . . . . Exploration | -11 -10 -10 -10 -9 -8 -7 -6 -5 -5 -5 -5 -4 -4 ------------- Run | Yrd Mat Min Exi Min Mat Fac Fac Fac Upp Upp Zhi Pro Fac Turns Passed 9621 | 39 268 210 647 873 1009 384 938 345 520 710 461 1445 1772 Spaces Moved 4691 | 34 201 193 593 207 368 198 749 196 272 400 236 617 427 Core 20 | 7 . . . 11 1 . . . . . . . 1 Treads 221 | . . . . . 23 198 . . . . . . . Legs 1 | . . . . . . . . . . . . . 1 Wheels 4449 | 27 201 193 593 196 344 . 749 196 272 400 236 617 425 Hover . | . . . . . . . . . . . . . . Flight . | . . . . . . . . . . . . . . Fastest Speed 50 | 50 80 95 105 210 80 160 100 175 175 175 175 185 108 Average Speed 154 | 73 87 103 106 397 98 170 112 175 175 175 183 189 167 Slowest Speed 3500 | 80 95 105 210 3500 450 240 175 175 175 175 190 190 1400 Overloaded Moves . | . . . . . . . . . . . . . . Propulsion Burnouts . | . . . . . . . . . . . . . . Robots Hopped . | . . . . . . . . . . . . . . Potential Cave-ins 3 | . . . . . . . . . 3 . . . . Cave-ins Triggered . | . . . . . . . . . . . . . . Teleports 1 | . . . . . . . . . . . 1 . . Exploration Rate (%) 36 | 3 38 36 74 52 34 7 22 7 42 53 62 64 12 Regions Visited 13 Branch Regions 7 Pre-discovered Areas 4 | . . . . 1 . . . . . . 3 . . Known Exits Taken 1 | . . . . . . . . . . . . 1 . Unknown Exits Taken 12 | 1 1 1 1 1 1 1 1 1 1 1 1 . . Scrap Searched 11 | . . 1 . 1 . . . . 5 4 . . . Spaces Dug 245 | . 6 . . . 31 . . . 3 . . 197 8 Terrain Destroyed 530 | . 6 11 . . 31 63 42 . 6 . . 290 81 Melee . | . . . . . . . . . . . . . . Projectile 45 | . . . . . . . . . 6 . . 8 31 AOE 485 | . 6 11 . . 31 63 42 . . . . 282 50 Terrain Rammed . | . . . . . . . . . . . . . . Walls Destroyed . | . . . . . . . . . . . . . . Machines Disabled . | . . . . . . . . . . . . . . Actions | -11 -10 -10 -10 -9 -8 -7 -6 -5 -5 -5 -5 -4 -4 --------- Run | Yrd Mat Min Exi Min Mat Fac Fac Fac Upp Upp Zhi Pro Fac Total 6540 | 47 245 199 611 240 940 232 821 198 291 412 265 801 1238 Wait 1268 | . 7 1 . 17 494 10 14 . . . 4 135 586 Move 4678 | 33 200 192 592 206 367 197 748 195 271 399 235 616 427 Hop . | . . . . . . . . . . . . . . Pick Up 139 | 8 10 1 13 2 15 8 25 3 3 7 7 1 36 Fast Attach . | . . . . . . . . . . . . . . Attach 81 | 6 1 . 1 2 11 3 9 . 2 . 3 5 38 Detach 5 | . . . . . 1 . 2 . . . 1 . 1 Swap 35 | . 1 1 . 2 3 7 4 . . 2 7 1 7 Drop 41 | . 2 2 5 1 3 2 5 . . 4 8 . 9 Fire 291 | . 24 2 . 10 46 5 14 . 15 . . 41 134 Melee . | . . . . . . . . . . . . . . Ram 2 | . . . . . . . . . . . . 2 . Kick . | . . . . . . . . . . . . . . Crush . | . . . . . . . . . . . . . . Escape Stasis . | . . . . . . . . . . . . . . Rewire . | . . . . . . . . . . . . . . Trap . | . . . . . . . . . . . . . . Miscellaneous . | . . . . . . . . . . . . . . Route ------- -11/Scrapyard -10/Materials (discovered 2 exits: [*Mat] / [*Min]) -10/Mines -10/Exiles -9/Mines -8/Materials -7/Factory -6/Factory -5/Factory -5/Upper Caves -5/Upper Caves -5/Zhirov -4/Proximity Caves -4/Factory (discovered 1 exit: Res) History --------- Turn | Location | Event 13 | -11/Scrapyard | Discovered new exit (range 16) 40 | -11/Scrapyard | Entered Materials 243 | -10/Materials | Discovered new exit (range 8) 277 | -10/Materials | Discovered new exit (range 13) 308 | -10/Materials | Entered Mines 315 | -10/Mines | Build established: Mutant 514 | -10/Mines | Deemed a non-threat by the Exiles lab entrance 514 | -10/Mines | Discovered new exit (range 5) 518 | -10/Mines | Entered Exiles 544 | -10/Exiles | Met 8R-AWN 562 | -10/Exiles | Met EX-HEX 591 | -10/Exiles | Met EX-BIN 602 | -10/Exiles | Aligned with FarCom system 604 | -10/Exiles | Given EX-Vault access code 628 | -10/Exiles | Opened EX-Vault 676 | -10/Exiles | Warned to stay clear of 0b10 Research branches 714 | -10/Exiles | Found Field Lobotomy Kit 876 | -10/Exiles | Found Lightpack 2.0 929 | -10/Exiles | Met EX-DEC 1054 | -10/Exiles | Discovered new exit (range 11) 1165 | -10/Exiles | Left Exiles lab with Lightpack 2.0 1165 | -10/Exiles | Entered Mines 1205 | -9/Mines | Met a Derelict bent on vengeance 1440 | -9/Mines | Build established: Hauler-Mutant 2010 | -9/Mines | Discovered new exit (range 7) 2038 | -9/Mines | Entered Materials 2038 | -8/Materials | Evolved 4 slots: Utility x4 2816 | -8/Materials | Lost 5 parts (1n2u2w) 2889 | -8/Materials | Discovered new exit (range 6) 3047 | -8/Materials | Entered Factory 3047 | -7/Factory | Evolved 2 slots: Power x1, Weapon x1 3352 | -7/Factory | Build established: Hauler-Skirmisher 3358 | -7/Factory | Discovered new exit (range 16) 3431 | -7/Factory | Entered another Factory area 3431 | -6/Factory | Evolved 2 slots: Propulsion x1, Utility x1 3740 | -6/Factory | Found Prototype Launcher 3943 | -6/Factory | Build established: Hauler-Tank 3996 | -6/Factory | Garrison activated, responded to threat 4176 | -6/Factory | Discovered new exit (range 15) 4196 | -6/Factory | Found Hvy. Insulated Plating 4369 | -6/Factory | Entered another Factory area 4369 | -5/Factory | Evolved 2 slots: Utility x1, Weapon x1 4618 | -5/Factory | Discovered new exit (range 5) 4714 | -5/Factory | Entered Upper Caves 5058 | -5/Upper Caves | Learned location of 1 exit from Proximity Caves 5063 | -5/Upper Caves | Spotted B-75 Beast 5183 | -5/Upper Caves | Discovered new exit (range 15) 5234 | -5/Upper Caves | Entered another Upper Caves area 5538 | -5/Upper Caves | Learned location of 1 exit from Factory 5921 | -5/Upper Caves | Discovered new exit (range 14) 5944 | -5/Upper Caves | Entered Zhirov 5944 | -5/Zhirov | Discovered new exit (range 3) 5976 | -5/Zhirov | Met Zhirov 6011 | -5/Zhirov | Learned location of Quarantine (-2) 6011 | -5/Zhirov | Learned location of Testing (-3) 6011 | -5/Zhirov | Learned location of Command (-1) 6046 | -5/Zhirov | Zhirov requested help retrieving the SGEMP Prototype 6132 | -5/Zhirov | Identified Scatter Rocket Array 6234 | -5/Zhirov | Found Alien Artifact 6256 | -5/Zhirov | Found Alien Artifact 6299 | -5/Zhirov | Identified Integrated Reactor 6299 | -5/Zhirov | Installed Integrated Reactor, increased core energy generation (+10) 6310 | -5/Zhirov | Identified Transdimensional Reconstructor 6310 | -5/Zhirov | Warped through subspace 6405 | -5/Zhirov | Entered Proximity Caves 6406 | -4/Proximity Caves | Identified exit to Factory 7610 | -4/Proximity Caves | Learned Research terminal intel 7674 | -4/Proximity Caves | Snuck into a huge 0b10 base via the rear entrance 7850 | -4/Proximity Caves | Entered Factory 7850 | -4/Factory | Evolved 2 slots: Utility x2 7851 | -4/Factory | Identified exit to Research 7877 | -4/Factory | Lost 3 parts (1n2u) 8137 | -4/Factory | Build established: Hauler-Skirmisher 8673 | -4/Factory | Lost 4 parts (2u2w) 9055 | -4/Factory | Lost 4 parts (1p3u) 9058 | -4/Factory | Build established: Hauler-Tank 9125 | -4/Factory | Destroyed 8 combat bots 9350 | -4/Factory | First assault squad dispatched 9388 | -4/Factory | Build established: Scavenger-Tank 9510 | -4/Factory | Lost 3 parts (1p1n1u) 9602 | -4/Factory | Core integrity fell below 50% 9616 | -4/Factory | Core integrity fell below 20% 9622 | -4/Factory | Destroyed by G-67 Veteran with Plasma Rifle Last Messages --------------- 09609_ U-05 Engineer builds a Wall. 09611_ G-67 Veteran heat spikes uncontrollably. 09612_ U-05 Engineer lays Concrete. 09612_ G-67 Veteran overheating. 09613_ G-67 Veteran heat damages Adv. Heat Sink, Flexi-carbon Leg, Field Laser, Plasma Rifle. 09613_ U-05 Engineer builds a Wall. 09613_ G-67 Veteran overheating. 09614_ K-01 Serf collects debris. 09614_ G-67 Veteran overheating. 09616_ K-01 Serf collects debris. 09617_ U-05 Engineer lays Concrete. 09617_ Acquired Flexi-carbon Leg. 09618_ U-05 Engineer lays Concrete. 09618_ K-01 Serf collects debris. 09619_ G-67 Veteran heat damages Plasma Rifle. 09619_ U-05 Engineer lays Concrete. 09621_ G-67 Veteran overheating. 09621_ U-05 Engineer lays Concrete. 09622_ Dropped Huge Storage Unit. Map ----- +----------------------------------------------------+ | ??????????? +???? * ??????????????????????????? | | ??????????# #??? ???????????????????????????? | | ###########+## #?? ????????????????????????????? | | " ! !=# #? ?????????????????????????????? | | " ! ""%# # ??????????????????????????????? | | # """"*# #########+#######?????????????????? | | # """"!#!* ?????????????????? | | # """!#*=% ????????????????? | | # ""%%/[ [ ????????????????? | | # ! ""=#%* ???????????????? | | #] =%=% !# / ???????????????? | | # * / =#w ???????????????? | | # #* % ??????????????? | | # # A ??????????????? | | # # ???g?????????? | | ############## ?????????????? | | ?????##??????# ?????????????? | | ?#???????????# R ?????????????? | | ?#???????????# ########???????????????? | | ?????????????# R#??????????????????????? | | #????????????# #??????????????????????? | | ?????????????# ##?????????????????????? | | ???????????? # k k ##????????????????????? | | ??????????? + ! #????????????????????? | | ?????????????# uu g* ?????????????????????? | | ?????????????# # % [ @###????????????????????? | | ?????????????# #!%=g = ###??????????????????? | | ?????????????# #"[gg*[ # #??????????????????? | | ?????????????# #""= [!" ###??????????????????? | | ?????????????# #""!" " #????????????????????? | | ?????????????# #"Y """" #????????????????????? | | ?????????????# ?#"" """" #????????????????????? | | ?????????????# ?#"" #????????????????????? | | ?????????????? ? ??#"" ! #????????????????????? | | ???????????????????? ! #????????????????????? | | ???????????????????##########????????????????????? | | ?????????????????????????????????????????????????? | | ?????????????????????????????????????????????????? | | ?????????????????????????????????????????????????? | | ?????????????????????????????????????????????????? | | ?????????????????????????????????????????????????? | | ?????????????????????????????????????????????????? | | ?????????????????????????????????????????????????? | | ?????????????????????????????????????????????????? | | ?????????????????????????????????????????????????? | | ?????????????????????????????????????????????????? | | ?????????????????????????????????????????????????? | | ?????????????????????????????????????????????????? | | ?????????????????????????????????????????????????? | | ?????????????????????????????????????????????????? | +----------------------------------------------------+ Best States ------------- Heat Dissipation 62 Energy Generation 47 Energy Capacity 415 Matter Stores 600 Matter Capacity 600 Sight Range 16 Terrain Scan Range 16 Terrain Scan Density 10 Armor Coverage 1350 Resistance: KI 30 Resistance: EM 30 Power Shielding 66 Propulsion Shielding 66 Weapon Shielding 90 Weapon Cycling 15 Evasion (%) 44 Targeting Accuracy 6 Recoil Reduction 2 Item Schematics ----------------- Assault Drone Bay | -5/Zhirov | Free Exp. Heat Sink | -5/Zhirov | Free Exp. Optical Array | -5/Zhirov | Free Imp. Arc Thrower | -5/Zhirov | Free Robot Schematics ------------------ None Fabricated ------------ Nothing Repaired ---------- Nothing Alien Tech Used ----------------- Integrated Reactor Transdimensional Reconstructor Achievements -------------- Armchair Analyst It Was An Accident, I Swear Packrat Remodeling Significant Disruption Subspace Traveler The Science Guy Challenges ------------ None Game ------ Seed ElectronLightpackDoublenader Manual? 0 Play Time 01:45:08 Cumulative 28.7 hours Start 2025.10.19 @ 03:38:15 End 2025.10.19 @ 05:35:57 Sessions 1 Manual Loads 0 Difficulty Rogue Special Mode None Game No. 27 Rogue 27 Adventurer 0 Explorer 0 Win Type - Total 0 Types 0/0/0/0/0/0/0/0/0/0 Lore% 23 Gallery% 27 Achievement% 23 Wizard Run 0 Options --------- Layout 1 ASCII 0 Keyboard 0 Movement Mouse Keybinds 0 Fullscreen 1 Font 32/SmallcapsGlow Map View 50x35 Zoom Use 0% Tactical HUD 1 Map Filters NONE Filters NONE Steam 1 RUN: f39b82d5-9671-4d27-89b7-8dce94edfb8a